bitfinex/quotes_BTCUSD_20230106
["timestamp","ask_amount","ask_price","bid_price","bid_amount"]
[1673035884071,0.95132927,17020.0,17019.0,0.3951]
[1673035884839,1.00132927,17020.0,17019.0,0.3951]
[1673035885304,1.7788474,17020.0,17019.0,0.3951]
[1673035885563,2.1163914,17020.0,17019.0,0.3951]
[1673035885813,2.3899724,17020.0,17019.0,0.3951]
[1673035886088,2.3663914,17020.0,17019.0,0.3951]
[1673035886331,2.1399724,17020.0,17019.0,0.3951]
[1673035886625,2.11589215,17020.0,17019.0,0.3951]
[1673035887097,0.0201128,17020.0,17019.0,0.51581335]
[1673035887315,0.0201128,17020.0,17019.0,0.3951]
[1673035887598,0.2701128,17020.0,17019.0,0.41008102]
[1673035888369,0.8576568,17020.0,17019.0,0.41008102]
[1673035888624,1.1576568,17020.0,17019.0,0.41008102]
[1673035888908,0.3201128,17020.0,17019.0,0.41008102]
[1673035889163,0.0201128,17020.0,17019.0,0.25498102]
[1673035889414,0.0201128,17020.0,17019.0,0.92412726]
[1673035889672,0.0201128,17020.0,17019.0,0.90914624]
[1673035889939,0.0201128,17020.0,17019.0,1.03070736]
[1673035890445,0.6664736,17020.0,17019.0,0.90914624]
[1673035890785,1.49349248,17020.0,17019.0,0.24]
[1673035891565,1.49349248,17020.0,17019.0,0.23988658]
[1673035891799,2.08103648,17020.0,17019.0,0.23988658]
[1673035892415,1.5540176,17020.0,17019.0,0.12468658]
[1673035892679,2.1651426,17020.0,17019.0,0.12468658]
[1673035893150,2.458682,17020.0,17019.0,0.12468658]
[1673035893388,1.5234042,17020.0,17019.0,0.00958658]
[1673035893634,1.55881641,17020.0,17019.0,0.00958658]
[1673035893889,1.96731641,17020.0,17019.0,0.00958658]
[1673035894600,2.26731641,17020.0,17019.0,0.00958658]
[1673035895151,1.96269401,17020.0,17019.0,0.00958658]
[1673035896061,1.94689629,17020.0,17019.0,0.00958658]
[1673035896301,1.93839629,17020.0,17019.0,0.00958658]
[1673035896536,1.2187818,17020.0,17019.0,0.00958658]
[1673035896785,1.6187818,17020.0,17019.0,0.00958658]
[1673035897015,2.25867113,17020.0,17019.0,0.00958658]
[1673035897256,1.6287818,17020.0,17019.0,0.00958658]
[1673035897492,2.59877351,17020.0,17019.0,0.00958658]
[1673035897902,2.89877351,17020.0,17019.0,0.00958658]
[1673035898689,2.25766798,17020.0,17019.0,0.00958658]
[1673035899725,3.15144996,17020.0,17019.0,0.00958658]
[1673035900488,3.12964996,17020.0,17019.0,0.00958658]
[1673035901248,3.01444996,17020.0,17019.0,0.00958658]
[1673035901513,2.69406378,17020.0,17019.0,0.00958658]
[1673035901763,2.16604484,17020.0,17019.0,0.00958658]
[1673035902517,1.4902818,17020.0,17019.0,0.00958658]
[1673035902768,2.39406378,17020.0,17019.0,0.00958658]
[1673035903269,2.69406378,17020.0,17019.0,0.00958658]
[1673035903522,3.12097816,17020.0,17019.0,0.00958658]
[1673035907102,2.69335653,17020.0,17019.0,0.00958658]
[1673035907871,2.04328121,17020.0,17019.0,0.24726447]
[1673035908104,2.04328121,17020.0,17019.0,0.00958658]
[1673035908610,1.64328121,17020.0,17019.0,0.00958658]
[1673035908861,1.61970021,17020.0,17019.0,0.00958658]
[1673035909112,1.61970021,17020.0,17019.0,0.02817363]
[1673035909369,1.65178121,17020.0,17019.0,0.02817363]
[1673035909647,1.65178121,17020.0,17019.0,0.00958658]
[1673035910471,1.62820021,17020.0,17019.0,0.00958658]
[1673035910895,2.21283375,17020.0,17019.0,0.00958658]
[1673035911615,2.23641475,17020.0,17019.0,0.00958658]
[1673035912121,2.53641475,17020.0,17019.0,0.00958658]
[1673035914359,1.94328121,17020.0,17019.0,0.00958658]
[1673035915370,1.38107455,17020.0,17019.0,0.00958658]
[1673035915866,1.78107455,17020.0,17019.0,0.00958658]
[1673035916359,1.78957455,17020.0,17019.0,0.00958658]
[1673035918621,2.39261583,17020.0,17019.0,0.00958658]
[1673035918877,1.78957455,17020.0,17019.0,0.00958658]
[1673035919127,2.17287698,17020.0,17019.0,0.00958658]
[1673035920372,3.04124675,17020.0,17019.0,0.00958658]
[1673035920622,2.65794432,17020.0,17019.0,0.00958658]
[1673035921380,1.78957455,17020.0,17019.0,0.00958658]
[1673035921885,0.4,17019.0,17018.0,0.17628393]
[1673035922148,2.51906821,17019.0,17018.0,9.3e-07]
[1673035922389,3.07730009,17019.0,17013.0,1.28023506]
[1673035922653,0.4,17016.0,17013.0,1.28023506]
[1673035922954,0.59409003,17014.0,17013.0,1.28023506]
[1673035923148,1.76959203,17014.0,17013.0,1.27523506]
[1673035923409,2.67717547,17014.0,17013.0,1.27523506]
[1673035923654,2.71258768,17014.0,17013.0,1.28891924]
[1673035923904,2.67717547,17014.0,17013.0,1.28891924]
[1673035924446,2.65359447,17014.0,17013.0,1.28891924]
[1673035924717,2.67717547,17014.0,17013.0,1.27523506]
[1673035925206,2.05950444,17014.0,17013.0,1.27523506]
[1673035925514,1.90681187,17014.0,17013.0,1.27523506]
[1673035925709,1.90681187,17014.0,17013.0,1.71627245]
[1673035925984,0.52769313,17015.0,17013.0,2.76009563]
[1673035926224,0.52769313,17017.0,17014.0,2.19050468]
[1673035926474,0.52769313,17019.0,17015.0,2.60361457]
[1673035926751,0.52769313,17019.0,17016.0,1.98215992]
[1673035926988,0.52769313,17019.0,17018.0,0.3437]
[1673035927253,0.52769313,17019.0,17018.0,1.77188257]
[1673035927504,0.52769313,17019.0,17018.0,0.94783]
[1673035927999,0.52762427,17019.0,17018.0,1.53420468]
[1673035928247,0.01,17020.0,17018.0,1.72762515]
[1673035928491,0.01,17020.0,17019.0,1.42075288]
[1673035928989,0.01,17020.0,17019.0,2.13277435]
[1673035929233,0.01,17020.0,17019.0,1.52864435]
[1673035929491,0.01,17020.0,17019.0,1.69256073]
[1673035929981,0.01,17020.0,17019.0,1.52864435]
[1673035930231,0.31,17020.0,17019.0,1.52864435]
[1673035930484,0.31,17020.0,17019.0,0.94242147]
[1673035930724,0.92835127,17020.0,17019.0,0.2304]
[1673035930994,2.1099853,17020.0,17019.0,0.2304]
[1673035931248,1.61550625,17020.0,17019.0,0.1152]
[1673035931503,2.20305025,17020.0,17019.0,0.1152]
[1673035932537,2.20305025,17020.0,17019.0,0.29147357]
[1673035934134,2.79698233,17020.0,17019.0,0.29147357]
[1673035934385,2.79692639,17020.0,17019.0,0.29147357]
[1673035934884,2.07896414,17020.0,17019.0,0.29147357]
[1673035935134,2.07896414,17020.0,17019.0,0.91573251]
[1673035935640,2.07896414,17020.0,17019.0,1.50210719]
[1673035935919,2.07896414,17020.0,17019.0,1.77893791]
[1673035936667,2.07896414,17020.0,17019.0,1.61730719]
[1673035936951,2.07896414,17020.0,17019.0,1.03093251]
[1673035937181,2.07896414,17020.0,17019.0,0.40667357]
[1673035938706,1.77896414,17020.0,17019.0,1.63902698]
[1673035938954,1.185088,17020.0,17019.0,1.63902698]
[1673035939199,0.597544,17020.0,17019.0,1.81434968]
[1673035939696,0.59746419,17020.0,17019.0,1.81434968]
[1673035940739,1.49134033,17020.0,17019.0,1.81434968]
[1673035941976,2.07888433,17020.0,17019.0,1.227975]
[1673035942227,2.07888433,17020.0,17019.0,1.82074968]
[1673035942438,1.48500819,17020.0,17019.0,1.82074968]
[1673035942952,0.53747969,17020.0,17019.0,2.54007968]
[1673035943219,0.00992019,17020.0,17019.0,3.00087895]
[1673035943475,0.5275595,17022.0,17020.0,0.4]
[1673035943721,0.61615291,17024.0,17021.0,2.4036323]
[1673035943722,0.5275595,17023.0,17021.0,2.4036323]
[1673035943976,0.5275595,17023.0,17022.0,3.02624085]
[1673035944221,0.5275595,17023.0,17022.0,2.50854085]
[1673035944467,0.5275595,17023.0,17022.0,3.09601585]
[1673035944723,0.5275595,17023.0,17022.0,4.0067166]
[1673035944965,0.02227677,17024.0,17022.0,4.40105494]
[1673035945212,0.02227677,17024.0,17023.0,2.05238096]
[1673035945462,0.02227677,17024.0,17023.0,3.62676096]
[1673035945710,0.02227677,17024.0,17023.0,3.74057719]
[1673035945963,0.54909645,17026.0,17023.0,3.91672361]
[1673035946231,1.14199196,17026.0,17025.0,0.2301]
[1673035946473,1.14124472,17026.0,17025.0,1.42060468]
[1673035946719,1.14124472,17026.0,17025.0,0.93029091]
[1673035946720,0.54834921,17026.0,17025.0,0.93029091]
[1673035946975,0.02153695,17026.0,17025.0,2.43458377]
[1673035947223,0.02153695,17026.0,17025.0,1.53442091]
[1673035947522,1.88829812,17026.0,17025.0,0.22901623]
[1673035947756,1.72302321,17026.0,17025.0,0.22901623]
[1673035948020,2.43461279,17026.0,17025.0,0.11381623]
[1673035948393,1.93162316,17026.0,17025.0,0.11381623]
[1673035948550,2.5254993,17026.0,17025.0,0.11381623]
[1673035949609,1.94012316,17026.0,17025.0,0.11381623]
[1673035949860,1.94012316,17026.0,17025.0,0.11387623]
[1673035950129,2.35160208,17026.0,17025.0,0.11387623]
[1673035951147,0.4,17025.0,17021.0,0.00015]
[1673035951413,0.52647135,17022.0,17021.0,0.00015]
[1673035951665,2.98889635,17022.0,17021.0,0.00015]
[1673035951914,3.02430856,17022.0,17021.0,0.00015]
[1673035952446,3.02430856,17022.0,17019.0,0.30027357]
[1673035952447,3.54065143,17022.0,17019.0,0.30027357]
[1673035952709,0.82640447,17021.0,17019.0,0.30027357]
[1673035952938,1.762632,17020.0,17019.0,0.30027357]
[1673035953188,2.062632,17020.0,17019.0,0.30027357]
[1673035953693,2.62444868,17020.0,17019.0,0.18507357]
[1673035953943,2.58903647,17020.0,17019.0,0.18507357]
[1673035954192,2.062632,17020.0,17019.0,0.18507357]
[1673035954961,3.16174927,17020.0,17019.0,0.18507357]
[1673035955222,2.4408033,17020.0,17019.0,0.18507357]
[1673035955475,3.4688894,17020.0,17019.0,0.18507357]
[1673035955729,3.43308357,17020.0,17019.0,0.18507357]
[1673035956242,4.13946444,17020.0,17019.0,0.18507357]
[1673035956504,3.43308357,17020.0,17019.0,0.18507357]
[1673035956731,2.71119815,17020.0,17019.0,0.18507357]
[1673035959580,3.23785292,17020.0,17019.0,0.18507357]
[1673035960372,2.80319815,17020.0,17019.0,0.19307357]
[1673035960871,2.80319815,17020.0,17019.0,0.30770837]
[1673035960872,3.02135324,17020.0,17019.0,0.30770837]
[1673035961129,2.92935324,17020.0,17019.0,0.29957357]
[1673035961376,3.02147514,17020.0,17019.0,0.30757357]
[1673035961874,2.92947514,17020.0,17019.0,0.29957357]
[1673035962126,2.12365531,17020.0,17019.0,0.29957357]
[1673035962381,3.20793558,17020.0,17019.0,0.19307357]
[1673035962642,2.59016611,17020.0,17019.0,0.19307357]
[1673035962902,3.83640299,17020.0,17019.0,0.19307357]
[1673035963154,3.74440299,17020.0,17019.0,0.19307357]
[1673035963411,3.74440299,17020.0,17019.0,0.18507357]
[1673035963412,3.83672959,17020.0,17019.0,0.18507357]
[1673035963788,3.83672959,17020.0,17019.0,0.19307357]
[1673035964229,3.33578393,17020.0,17019.0,0.19307357]
[1673035964462,3.11637172,17020.0,17019.0,0.18507357]
[1673035964710,3.11637172,17020.0,17019.0,0.19307357]
[1673035964962,2.88164497,17020.0,17019.0,0.19307357]
[1673035965213,3.57364497,17020.0,17019.0,0.19307357]
[1673035966530,4.4754427,17020.0,17015.0,2.03323544]
[1673035966808,0.52744411,17016.0,17015.0,2.03323544]
[1673035967057,2.59049011,17016.0,17015.0,1.44865]
[1673035968093,2.59049011,17016.0,17015.0,1.4565]
[1673035968343,3.20553429,17016.0,17015.0,1.4485]
[1673035968618,3.20553429,17016.0,17015.0,1.44863484]
[1673035968899,3.20553429,17016.0,17015.0,1.4485]
[1673035969395,3.27353429,17016.0,17015.0,1.4555]
[1673035970185,3.65965452,17016.0,17015.0,1.3403]
[1673035970436,3.13221041,17016.0,17015.0,1.3403]
[1673035970701,3.13221041,17016.0,17015.0,0.007]
[1673035970945,3.14071041,17016.0,17015.0,0.007]
[1673035971198,3.28164831,17016.0,17015.0,0.007]
[1673035971455,3.28164831,17016.0,17015.0,0.1219]
[1673035972208,3.28164831,17016.0,17015.0,0.12203484]
[1673035972714,3.28164831,17016.0,17015.0,0.1219]
[1673035973237,3.66857994,17016.0,17015.0,0.1219]
[1673035973487,3.49230637,17016.0,17015.0,0.1219]
[1673035973782,3.10537474,17016.0,17015.0,0.12203484]
[1673035974088,3.10537474,17016.0,17015.0,0.1219]
[1673035974822,3.10537474,17016.0,17015.0,0.12203484]
[1673035975072,3.10537474,17016.0,17015.0,0.1219]
[1673035975293,2.57831661,17016.0,17015.0,0.1219]
[1673035976090,3.10537474,17016.0,17015.0,0.1219]
[1673035976354,2.57831661,17016.0,17015.0,0.1219]
[1673035976597,2.57331661,17016.0,17015.0,0.1219]
[1673035976852,3.10037474,17016.0,17015.0,0.1219]
[1673035977620,0.3,17015.0,17014.0,0.1149]
[1673035977877,0.82660258,17015.0,17013.0,0.00247414]
[1673035978141,2.00203458,17015.0,17013.0,0.00247414]
[1673035978390,0.3085,17014.0,17013.0,0.00247414]
[1673035978940,0.3085,17014.0,17013.0,0.11737414]
[1673035978941,1.484002,17014.0,17013.0,0.11737414]
[1673035979291,1.484002,17014.0,17013.0,0.12037414]
[1673035979448,1.484002,17014.0,17013.0,0.11737414]
[1673035979738,1.492002,17014.0,17013.0,0.07847414]
[1673035980231,2.13702923,17014.0,17013.0,0.07847414]
[1673035980481,2.12427704,17014.0,17013.0,0.10002904]
[1673035980980,1.42842695,17014.0,17013.0,0.10002904]
[1673035981248,2.42180158,17014.0,17013.0,0.10002904]
[1673035981504,3.04087431,17014.0,17013.0,0.10002904]
[1673035982299,2.43949968,17014.0,17012.0,0.0024811]
[1673035982529,1.5261165,17013.0,17012.0,0.0024811]
[1673035982783,2.4101865,17013.0,17012.0,0.0024811]
[1673035983033,3.04210307,17013.0,17012.0,0.0024811]
[1673035983291,1.81598657,17013.0,17012.0,0.24015899]
[1673035983553,1.95198657,17013.0,17012.0,0.22207504]
[1673035983811,1.81598657,17013.0,17012.0,0.22207504]
[1673035984061,1.95198657,17013.0,17012.0,0.1176811]
[1673035984594,1.62007,17013.0,17012.0,0.1126811]
[1673035985095,1.48407,17013.0,17012.0,0.1126811]
[1673035985351,1.61907,17013.0,17012.0,0.1126811]
[1673035986117,2.31400314,17013.0,17011.0,0.63455392]
[1673035986368,0.3,17012.0,17011.0,0.63455392]
[1673035986620,0.297,17012.0,17011.0,0.63455392]
[1673035986836,1.47264,17012.0,17011.0,0.63455392]
[1673035987876,1.47264,17012.0,17011.0,0.1174811]
[1673035988615,1.47264,17012.0,17011.0,0.1124811]
[1673035988874,2.18307701,17012.0,17011.0,0.1124811]
[1673035989134,2.31807701,17012.0,17011.0,0.1124811]
[1673035989648,2.18307701,17012.0,17011.0,0.1124811]
[1673035990648,2.31807701,17012.0,17011.0,0.1124811]
[1673035991424,2.18307701,17012.0,17011.0,0.1124811]
[1673035991674,2.31807701,17012.0,17011.0,0.1124811]
[1673035991890,2.18307701,17012.0,17011.0,0.1124811]
[1673035992371,2.31807701,17012.0,17011.0,0.1124811]
[1673035992615,2.32657701,17012.0,17011.0,0.1124811]
[1673035992867,2.46157701,17012.0,17011.0,0.1124811]
[1673035993628,2.76518077,17012.0,17011.0,0.1124811]
[1673035993870,2.46157701,17012.0,17011.0,0.1124811]
[1673035995171,1.44564,17012.0,17011.0,1.20839407]
[1673035995673,1.44564,17012.0,17011.0,1.92732407]
[1673035995674,0.85782,17012.0,17011.0,1.92732407]
[1673035995932,0.85782,17012.0,17011.0,2.32732407]
[1673035996191,0.58782,17012.0,17011.0,2.32732407]
[1673035996934,0.114,17012.0,17011.0,2.44252407]
[1673035997448,0.114,17012.0,17011.0,2.04252407]
[1673035997708,0.70182,17012.0,17011.0,1.35171915]
[1673035997965,0.70182,17012.0,17011.0,0.74758915]
[1673035998247,1.00182,17012.0,17011.0,0.74758915]
[1673035998769,1.58964,17012.0,17011.0,0.74758915]
[1673035999018,1.58964,17012.0,17011.0,1.32359407]
[1673035999274,1.00182,17012.0,17011.0,2.32772407]
[1673035999579,0.70182,17012.0,17011.0,2.32772407]
[1673036000521,0.114,17012.0,17011.0,2.32772407]
[1673036001521,0.414,17012.0,17011.0,2.32772407]
[1673036001804,1.00182,17012.0,17011.0,1.92772407]
[1673036002298,1.00182,17012.0,17011.0,0.74758915]
[1673036002535,1.00182,17012.0,17011.0,1.32359407]
[1673036003569,1.00182,17012.0,17011.0,0.2276811]
[1673036003822,1.94984032,17012.0,17011.0,0.1124811]
[1673036004584,1.28964,17012.0,17011.0,0.1124811]
[1673036005087,1.58964,17012.0,17011.0,0.1124811]
[1673036006395,1.58964,17012.0,17011.0,0.39366733]
[1673036006903,0.414,17012.0,17011.0,0.39366733]
[1673036007173,2.1157565,17012.0,17011.0,0.39366733]
[1673036007425,2.1157565,17012.0,17011.0,0.10589973]
[1673036007931,2.1157565,17012.0,17011.0,0.79774558]
[1673036009223,1.00182,17012.0,17011.0,1.3737505]
[1673036009470,1.5279365,17012.0,17011.0,1.77329555]
[1673036009831,1.5279365,17012.0,17011.0,2.37742555]
[1673036009990,1.5279365,17012.0,17011.0,2.37172555]
[1673036010217,1.5279365,17012.0,17011.0,0.90724558]
[1673036010516,1.58964,17012.0,17011.0,0.21539973]
[1673036011267,2.1815166,17012.0,17011.0,0.21539973]
[1673036013274,1.58964,17012.0,17011.0,0.21539973]
[1673036014285,2.18436562,17012.0,17011.0,0.21539973]
[1673036015265,1.58964,17012.0,17011.0,0.21539973]
[1673036017293,1.58964,17012.0,17011.0,0.10019973]
[1673036018020,2.18461979,17012.0,17011.0,0.61307494]
[1673036018766,2.18461979,17012.0,17011.0,0.87895293]
[1673036019028,2.18461979,17012.0,17011.0,0.72797494]
[1673036020035,1.58964,17012.0,17011.0,0.2299]
[1673036021564,2.21169702,17012.0,17011.0,0.1149]
[1673036023586,2.21169702,17012.0,17009.0,1.13030204]
[1673036023831,2.21169702,17012.0,17011.0,0.1152]
[1673036024076,2.22019702,17012.0,17011.0,0.1152]
[1673036025000,2.66141807,17012.0,17011.0,0.1152]
[1673036025139,2.22019702,17012.0,17011.0,0.1152]
[1673036029359,3.48658254,17012.0,17011.0,0.11508127]
[1673036029621,2.59814,17012.0,17009.0,0.00263449]
[1673036029875,1.08828222,17011.0,17009.0,0.00263449]
[1673036030151,2.351556,17010.0,17009.0,0.00263449]
[1673036030396,2.760056,17010.0,17009.0,0.00263449]
[1673036030655,2.61036194,17010.0,17009.0,0.00263449]
[1673036031156,1.03458394,17010.0,17009.0,0.35511238]
[1673036031419,0.86803653,17012.0,17009.0,1.80874634]
[1673036031674,0.52868655,17011.0,17010.0,0.80879821]
[1673036031938,0.52868655,17011.0,17010.0,1.17525032]
[1673036032197,0.52868655,17012.0,17010.0,1.28975032]
[1673036032525,0.52868655,17012.0,17011.0,2.56822535]
[1673036032709,0.52868655,17013.0,17011.0,2.56902535]
[1673036032986,0.52868655,17013.0,17012.0,2.03895032]
[1673036033215,0.52868655,17013.0,17012.0,2.2187509]
[1673036033704,0.52868655,17013.0,17012.0,2.84450419]
[1673036033947,0.57568655,17013.0,17012.0,2.84450419]
[1673036034197,0.52868655,17013.0,17012.0,2.6187509]
[1673036034452,0.57568655,17013.0,17012.0,2.6207509]
[1673036034715,0.57568655,17013.0,17012.0,2.6187509]
[1673036034967,0.047,17013.0,17012.0,2.6207509]
[1673036035211,0.047,17013.0,17012.0,4.6087909]
[1673036035468,0.047,17013.0,17012.0,5.1280909]
[1673036035719,0.047,17013.0,17012.0,5.8280909]
[1673036035968,0.52868655,17016.0,17012.0,5.8260909]
[1673036036212,0.52868655,17016.0,17015.0,0.8616]
[1673036036459,0.52868655,17016.0,17015.0,2.43665032]
[1673036037425,0.53468655,17016.0,17015.0,2.43665032]
[1673036037681,0.52868655,17016.0,17015.0,2.43665032]
[1673036037930,0.52868655,17016.0,17015.0,2.45465032]
[1673036037931,0.53468655,17016.0,17015.0,2.45465032]
[1673036038149,0.53468655,17016.0,17015.0,2.6360509]
[1673036038398,0.006,17016.0,17015.0,2.6360509]
[1673036038886,0.53468655,17016.0,17015.0,2.45465032]
[1673036039138,0.82968655,17016.0,17015.0,3.1575756]
[1673036039391,0.52968655,17016.0,17015.0,3.1575756]
[1673036039602,0.82968655,17016.0,17015.0,2.6400756]
[1673036040444,0.82968655,17016.0,17015.0,2.2400756]
[1673036040949,0.82968655,17016.0,17015.0,2.51592316]
[1673036041667,0.82413555,17016.0,17015.0,2.51592316]
[1673036042168,0.82413555,17016.0,17015.0,0.85143]
[1673036042452,0.82413555,17016.0,17015.0,0.2473]
[1673036042453,2.18715702,17016.0,17015.0,0.2473]
[1673036042706,2.78117587,17016.0,17015.0,0.2473]
[1673036045731,2.18715702,17016.0,17015.0,0.2473]
[1673036046483,2.18715702,17016.0,17015.0,0.1327]
[1673036046741,2.18715702,17016.0,17015.0,0.13006816]
[1673036047240,2.18715702,17016.0,17015.0,0.11206816]
[1673036047516,2.32315702,17016.0,17015.0,0.11406816]
[1673036047760,1.64614375,17016.0,17015.0,0.002]
[1673036048021,2.16898286,17016.0,17015.0,0.002]
[1673036048263,2.56898286,17016.0,17015.0,0.002]
[1673036048513,2.03298286,17016.0,17013.0,0.8179037]
[1673036048770,2.16898286,17016.0,17015.0,0.002]
[1673036048996,2.56898286,17016.0,17015.0,0.002]
[1673036049494,2.43298286,17016.0,17013.0,0.8179037]
[1673036049749,0.59354121,17014.0,17013.0,1.0103461]
[1673036050006,2.06904321,17014.0,17013.0,0.8179037]
[1673036050255,1.475502,17014.0,17013.0,0.8179037]
[1673036050750,1.475502,17014.0,17013.0,0.8199037]
[1673036050996,1.475502,17014.0,17013.0,0.8179037]
[1673036051243,1.610502,17014.0,17013.0,0.8199037]
[1673036051756,1.610502,17014.0,17013.0,0.117]
[1673036052007,2.84360111,17014.0,17013.0,0.117]
[1673036052783,2.70860111,17014.0,17013.0,0.115]
[1673036053032,2.82760111,17014.0,17013.0,0.118]
[1673036054764,2.2340599,17014.0,17013.0,0.118]
[1673036055514,2.6340599,17014.0,17013.0,0.118]
[1673036055767,2.5150599,17014.0,17013.0,0.118]
[1673036056015,2.003002,17014.0,17013.0,0.003]
[1673036056518,2.64066517,17014.0,17013.0,0.003]
[1673036057014,2.003002,17014.0,17013.0,0.003]
[1673036058265,2.87103853,17014.0,17013.0,0.003]
[1673036058520,2.003002,17014.0,17013.0,0.003]
[1673036059541,2.78681828,17014.0,17009.0,1.26140641]
[1673036059785,0.59352242,17012.0,17010.0,0.1152]
[1673036060037,3.05708442,17011.0,17010.0,0.1152]
[1673036060355,1.763562,17011.0,17010.0,0.1152]
[1673036060831,2.65708442,17011.0,17010.0,0.1152]
[1673036061373,2.79108442,17011.0,17010.0,0.1152]
[1673036062403,2.65708442,17011.0,17010.0,0.1152]
[1673036062645,2.79208442,17011.0,17010.0,0.1152]
[1673036062987,2.65708442,17011.0,17010.0,0.1152]
[1673036063160,2.79208442,17011.0,17010.0,0.19574861]
[1673036063408,2.65708442,17011.0,17010.0,0.19574861]
[1673036063655,2.79108442,17011.0,17010.0,0.1152]
[1673036064166,2.79108442,17011.0,17010.0,0.72655651]
[1673036064676,2.79108442,17011.0,17010.0,0.1152]
[1673036066800,2.197562,17011.0,17010.0,0.1152]
[1673036067338,2.197562,17011.0,17010.0,0.87542282]
[1673036067589,2.197562,17011.0,17010.0,0.79566028]
[1673036068331,2.79108442,17011.0,17010.0,0.79566028]
[1673036068588,2.79108442,17011.0,17010.0,0.1152]
[1673036068848,2.24084175,17011.0,17009.0,0.00263449]
[1673036069104,0.7085,17010.0,17009.0,0.00263449]
[1673036069394,1.884278,17010.0,17009.0,0.00263449]
[1673036069628,2.07763865,17010.0,17009.0,0.00263449]
[1673036069868,2.06913865,17010.0,17009.0,0.00263449]
[1673036070368,2.20513865,17010.0,17009.0,0.00263449]
[1673036070703,2.20513865,17010.0,17009.0,0.00256753]
[1673036070907,2.58546318,17010.0,17009.0,0.00256753]
[1673036071129,2.58446318,17010.0,17009.0,0.00256753]
[1673036071628,2.18446318,17010.0,17009.0,0.00256753]
[1673036071888,2.18446318,17010.0,17009.0,0.01434428]
[1673036071889,2.77768271,17010.0,17009.0,0.01434428]
[1673036072632,1.70298779,17010.0,17009.0,0.12914428]
[1673036072890,1.70298779,17010.0,17009.0,0.76003317]
[1673036073379,1.83798779,17010.0,17009.0,0.76003317]
[1673036073631,1.70298779,17010.0,17009.0,0.76003317]
[1673036073873,2.13698779,17010.0,17009.0,0.76003317]
[1673036074371,2.13698779,17010.0,17009.0,0.74825642]
[1673036075427,1.609778,17010.0,17009.0,0.74825642]
[1673036076000,2.13697834,17010.0,17009.0,0.74825642]
[1673036076507,2.13714986,17010.0,17009.0,0.74825642]
[1673036076757,1.609778,17010.0,17009.0,0.74825642]
[1673036077002,2.13715264,17010.0,17009.0,0.74825642]
[1673036077272,2.13715264,17010.0,17009.0,0.23256753]
[1673036077537,1.609778,17010.0,17009.0,0.23256753]
[1673036077785,2.83831286,17010.0,17009.0,0.23256753]
[1673036078041,2.84681286,17010.0,17009.0,0.00256753]
[1673036078835,2.71281286,17010.0,17009.0,0.00256753]
[1673036079104,2.84781286,17010.0,17009.0,0.00256753]
[1673036079345,2.71281286,17010.0,17009.0,0.00256753]
[1673036079600,2.84881286,17010.0,17009.0,0.00256753]
[1673036081076,3.25474292,17010.0,17009.0,0.00256753]
[1673036081328,2.66152339,17010.0,17009.0,0.00256753]
[1673036081834,2.86152339,17010.0,17009.0,0.00256753]
[1673036082609,2.22620806,17010.0,17009.0,0.00256753]
[1673036082858,2.9124659,17010.0,17009.0,0.00256753]
[1673036083362,2.09020806,17010.0,17009.0,0.00256753]
[1673036083620,2.22620806,17010.0,17009.0,0.00256753]
[1673036084365,2.26098781,17010.0,17009.0,0.00256753]
[1673036084887,2.26028048,17010.0,17009.0,0.00256753]
[1673036086216,1.85435042,17010.0,17009.0,0.00256753]
[1673036089480,0.4,17009.0,17007.0,0.00345543]
[1673036089763,3.2544286,17008.0,17007.0,0.00345543]
[1673036090539,3.28920835,17008.0,17007.0,0.00345543]
[1673036090786,3.84658779,17008.0,17007.0,0.00345543]
[1673036091573,4.28484657,17008.0,17007.0,0.00345543]
[1673036091827,0.4,17007.0,17006.0,0.00283528]
[1673036092094,2.46443135,17007.0,17006.0,0.00283528]
[1673036092621,3.05852795,17007.0,17006.0,0.00283528]
[1673036092877,2.59943135,17007.0,17006.0,0.00283528]
[1673036093371,3.19352795,17007.0,17006.0,0.00283528]
[1673036093683,2.59943135,17007.0,17006.0,0.00283528]
[1673036093880,3.19352795,17007.0,17006.0,0.00283528]
[1673036094370,3.05852795,17007.0,17006.0,0.00283528]
[1673036095126,3.67576815,17007.0,17006.0,0.00283528]
[1673036095901,2.59943135,17007.0,17006.0,0.00283528]
[1673036097149,2.46443135,17007.0,17006.0,0.00283528]
[1673036097444,2.59843135,17007.0,17006.0,0.00283528]
[1673036097673,2.46443135,17007.0,17006.0,0.00283528]
[1673036098208,3.19352795,17007.0,17006.0,0.00283528]
[1673036099226,2.59943135,17007.0,17006.0,0.00283528]
[1673036100473,2.48177643,17007.0,17006.0,1.01569095]
[1673036100734,2.2332818,17007.0,17006.0,1.01569095]
[1673036100992,2.82780032,17007.0,17006.0,1.01569095]
[1673036101366,2.2332818,17007.0,17006.0,1.01569095]
[1673036101534,2.06443135,17007.0,17006.0,1.01569095]
[1673036101759,2.20043135,17007.0,17006.0,1.01569095]
[1673036102772,1.90651987,17007.0,17006.0,1.92967133]
[1673036103316,1.84041765,17007.0,17006.0,2.76340133]
[1673036103841,1.70441765,17007.0,17006.0,2.25436464]
[1673036104097,1.310986,17007.0,17006.0,2.78585115]
[1673036104340,0.587993,17007.0,17006.0,2.65436464]
[1673036104581,0.721993,17007.0,17006.0,2.65436464]
[1673036105113,1.309986,17007.0,17006.0,3.98983532]
[1673036105349,1.70441765,17007.0,17006.0,3.30009163]
[1673036105849,1.11642465,17007.0,17006.0,3.30009163]
[1673036106393,1.12542465,17007.0,17006.0,3.30268381]
[1673036106628,1.11642465,17007.0,17006.0,3.30268381]
[1673036106879,1.14942465,17007.0,17006.0,3.30268381]
[1673036107377,0.620993,17007.0,17006.0,2.66721313]
[1673036107661,0.620993,17007.0,17006.0,3.06721313]
[1673036107874,1.14942465,17007.0,17006.0,3.06721313]
[1673036108128,1.14942465,17007.0,17006.0,3.63662285]
[1673036108621,0.56143165,17007.0,17006.0,3.63662285]
[1673036108898,0.033,17007.0,17006.0,3.63662285]
[1673036109622,0.47353186,17007.0,17006.0,3.93063285]
[1673036110124,0.47342106,17007.0,17006.0,3.63662285]
[1673036110368,0.47342106,17007.0,17006.0,3.63732285]
[1673036110617,0.47342129,17007.0,17006.0,3.63732285]
[1673036110882,0.033,17007.0,17006.0,3.63732285]
[1673036111662,0.47334655,17007.0,17006.0,4.15552285]
[1673036113690,1.70419665,17011.0,17006.0,5.85137685]
[1673036113981,1.70419665,17011.0,17010.0,0.3443]
[1673036114244,1.70419665,17011.0,17010.0,1.75118391]
[1673036114501,0.52843165,17011.0,17010.0,1.75118391]
[1673036114754,0.587826,17012.0,17010.0,0.94843]
[1673036114755,1.11625765,17012.0,17010.0,0.94843]
[1673036115010,1.11625765,17012.0,17010.0,0.1142]
[1673036115011,0.136,17011.0,17010.0,0.1142]